bitfinex-derivatives/quotes_BTCF0:USTF0_20250119
["timestamp","ask_amount","ask_price","bid_price","bid_amount"]
[1737297263436,0.14524217,105330.0,105310.0,0.7634]
[1737297264129,0.408339,105340.0,105310.0,0.7634]
[1737297264324,0.45849717,105340.0,105310.0,1.22189717]
[1737297264534,0.57228629,105350.0,105320.0,0.45849717]
[1737297264720,0.21092628,105350.0,105320.0,1.0278]
[1737297264927,0.62068063,105360.0,105320.0,1.12549717]
[1737297265230,0.11322911,105360.0,105340.0,0.3608]
[1737297265422,0.11322911,105360.0,105350.0,0.3608]
[1737297265834,0.11322911,105360.0,105340.0,0.3608]
[1737297266023,0.21092628,105360.0,105350.0,0.7323]
[1737297266228,0.21092628,105360.0,105350.0,1.0505]
[1737297266538,0.60372334,105360.0,105330.0,0.64495354]
[1737297266737,0.09769717,105340.0,105330.0,0.64495354]
[1737297266924,0.09769717,105340.0,105330.0,0.29783158]
[1737297267122,0.09769717,105340.0,105330.0,0.28415354]
[1737297267728,0.09769717,105340.0,105330.0,0.54687639]
[1737297268941,0.09769717,105340.0,105330.0,0.16897972]
[1737297269239,0.50603317,105350.0,105330.0,0.16897972]
[1737297269428,0.45849717,105360.0,105330.0,0.52977972]
[1737297269624,0.09769717,105350.0,105340.0,0.3789]
[1737297269827,0.09769717,105350.0,105340.0,0.7604]
[1737297270337,0.45849717,105370.0,105340.0,1.1212]
[1737297270634,0.09769717,105370.0,105340.0,1.61507972]
[1737297270830,0.09769717,105370.0,105350.0,1.1032]
[1737297271031,0.09769717,105370.0,105350.0,0.7424]
[1737297271231,0.09769717,105370.0,105350.0,1.1032]
[1737297271435,0.09769717,105360.0,105350.0,1.1032]
[1737297271631,0.09769717,105360.0,105350.0,0.7424]
[1737297271839,0.09769717,105360.0,105350.0,0.91137972]
[1737297273040,0.45849717,105370.0,105350.0,1.27217972]
[1737297273435,0.09769717,105370.0,105350.0,1.27217972]
[1737297273626,0.09769717,105370.0,105360.0,1.0293]
[1737297273832,0.09769717,105380.0,105360.0,1.3901]
[1737297274331,0.3608,105390.0,105370.0,0.3608]
[1737297274542,0.45849717,105390.0,105370.0,0.7155]
[1737297274843,0.09769717,105380.0,105370.0,0.7155]
[1737297275738,0.45849717,105390.0,105370.0,0.7155]
[1737297276933,0.09769717,105380.0,105370.0,0.7155]
[1737297277533,0.45849717,105390.0,105370.0,0.7155]
[1737297278530,0.45849717,105390.0,105370.0,0.3547]
[1737297278734,0.45849717,105390.0,105370.0,0.7155]
[1737297278934,0.60743311,105400.0,105370.0,0.81319717]
[1737297279139,0.60743311,105400.0,105380.0,0.7346]
[1737297279443,0.09769717,105390.0,105380.0,0.7346]
[1737297279942,0.55992111,105400.0,105380.0,0.7346]
[1737297280139,0.09769717,105390.0,105380.0,0.7346]
[1737297281841,0.60743311,105400.0,105380.0,0.7346]
[1737297282041,0.09769717,105390.0,105380.0,0.7346]
[1737297283143,0.60371434,105390.0,105360.0,0.85669098]
[1737297283351,0.09769717,105380.0,105360.0,1.31958815]
[1737297283543,0.3608,105380.0,105360.0,1.67108815]
[1737297283743,0.50601717,105390.0,105360.0,1.67108815]
[1737297284044,0.09769717,105380.0,105360.0,1.40441126]
[1737297284246,0.50601717,105390.0,105360.0,1.50210843]
[1737297284542,0.09769717,105380.0,105360.0,1.40441126]
[1737297284742,0.50601717,105390.0,105360.0,1.50210843]
[1737297285143,0.50601717,105390.0,105360.0,1.40441126]
[1737297285544,0.50601717,105390.0,105360.0,1.50210843]
[1737297285850,0.50601717,105390.0,105360.0,1.40441126]
[1737297286044,0.09769717,105380.0,105360.0,1.40441126]
[1737297286242,0.45849717,105380.0,105360.0,1.40441126]
[1737297286439,0.09769717,105380.0,105360.0,1.40441126]
[1737297287644,0.50601717,105390.0,105360.0,1.40441126]
[1737297288447,0.40832,105390.0,105360.0,1.40441126]
[1737297288653,0.09769717,105380.0,105360.0,1.40441126]
[1737297289041,0.60371934,105370.0,105360.0,0.01331126]
[1737297289249,0.047529,105360.0,105350.0,0.16897972]
[1737297289450,0.60372334,105360.0,105350.0,0.16897972]
[1737297290358,0.50602617,105360.0,105350.0,0.16897972]
[1737297290656,0.50602617,105360.0,105340.0,0.37445844]
[1737297290858,0.09769717,105350.0,105340.0,0.37445844]
[1737297291551,0.3608,105360.0,105340.0,0.37445844]
[1737297291772,0.3608,105360.0,105340.0,0.47215561]
[1737297291954,0.88070317,105370.0,105340.0,0.47215561]
[1737297291955,0.47189717,105370.0,105340.0,0.47215561]
[1737297292255,0.09769717,105370.0,105350.0,0.3608]
[1737297292560,0.09769717,105370.0,105350.0,0.7341]
[1737297292748,0.61924728,105380.0,105350.0,1.0616]
[1737297292946,0.61924728,105380.0,105360.0,0.7354]
[1737297292947,0.09769717,105370.0,105360.0,0.7354]
[1737297293247,0.09769717,105370.0,105360.0,0.3746]
[1737297294155,0.09769717,105380.0,105360.0,0.7354]
[1737297294453,0.09769717,105380.0,105360.0,0.3746]
[1737297294644,0.50601817,105380.0,105360.0,0.3746]
[1737297294842,0.09769717,105370.0,105360.0,0.54357972]
[1737297295047,0.50601817,105380.0,105360.0,0.54357972]
[1737297295851,0.14521817,105380.0,105360.0,0.92809972]
[1737297296059,0.50601817,105380.0,105360.0,0.56729972]
[1737297296253,0.45849717,105380.0,105360.0,0.56729972]
[1737297296552,0.09769717,105380.0,105360.0,0.56729972]
[1737297296749,0.45849717,105380.0,105360.0,0.56729972]
[1737297297055,1.34492428,105390.0,105370.0,0.16897972]
[1737297297251,1.29692628,105390.0,105370.0,0.16897972]
[1737297297452,0.83192911,105390.0,105370.0,0.16897972]
[1737297297860,0.57172628,105390.0,105370.0,0.16897972]
[1737297298352,0.11322911,105390.0,105370.0,0.52977972]
[1737297298860,0.21092628,105390.0,105370.0,0.52977972]
[1737297299053,0.11322911,105390.0,105380.0,0.50601717]
[1737297299355,0.24354701,105400.0,105380.0,0.95701434]
[1737297299554,0.24354701,105400.0,105390.0,1.57629434]
[1737297299858,0.21512855,105400.0,105390.0,1.57629434]
[1737297300255,0.21370461,105400.0,105390.0,1.62381034]
[1737297300558,0.14212307,105410.0,105390.0,1.62381034]
[1737297300757,0.14212307,105410.0,105400.0,1.49949717]
[1737297301257,0.14212307,105410.0,105400.0,1.54700817]
[1737297301459,1.2267463,105440.0,105400.0,1.54700817]
[1737297301657,1.32444347,105440.0,105420.0,0.3608]
[1737297302558,1.37193747,105440.0,105420.0,0.3608]
[1737297302858,1.2298144,105440.0,105420.0,0.5298083]
[1737297303052,1.1823204,105440.0,105420.0,0.5298083]
[1737297303249,0.00142323,105440.0,105420.0,0.62750547]
[1737297304159,0.03837805,105450.0,105430.0,0.45849717]
[1737297305059,0.03837805,105450.0,105440.0,0.09769717]
[1737297305258,0.03837805,105450.0,105430.0,0.45849717]
[1737297305758,0.56189814,105470.0,105440.0,0.48519717]
[1737297305759,0.64810124,105470.0,105440.0,0.48519717]
[1737297306254,0.64810124,105470.0,105440.0,1.19909717]
[1737297306649,0.50597817,105470.0,105440.0,1.19909717]
[1737297307152,0.45849717,105460.0,105440.0,1.1014]
[1737297307962,0.45849717,105450.0,105430.0,0.3608]
[1737297308257,0.09769717,105440.0,105430.0,0.3608]
[1737297308854,1.27128617,105450.0,105430.0,0.3608]
[1737297309160,1.173589,105450.0,105420.0,1.21700038]
[1737297309361,0.09769717,105440.0,105420.0,1.11930321]
[1737297310551,1.27128617,105450.0,105420.0,1.21700038]
[1737297310752,1.173589,105450.0,105420.0,1.21700038]
[1737297310952,0.45849717,105450.0,105420.0,1.21700038]
[1737297311354,0.09769717,105440.0,105420.0,1.11930321]
[1737297312752,0.45849717,105450.0,105420.0,1.11930321]
[1737297312951,0.09769717,105450.0,105420.0,1.11930321]
[1737297313157,0.09769717,105440.0,105420.0,1.11930321]
[1737297313361,0.45849717,105450.0,105420.0,1.11930321]
[1737297313555,0.09769717,105440.0,105420.0,1.11930321]
[1737297314162,1.1104,105470.0,105430.0,0.50599317]
[1737297314460,0.84729717,105470.0,105440.0,0.45849717]
[1737297314653,1.20809717,105470.0,105440.0,0.7405]
[1737297314857,0.09769717,105450.0,105440.0,0.3797]
[1737297316055,0.45849717,105450.0,105440.0,0.3797]
[1737297316957,0.60368434,105450.0,105420.0,0.37250321]
[1737297317167,0.09769717,105430.0,105420.0,0.37250321]
[1737297317460,0.45849717,105430.0,105410.0,0.9105483]
[1737297317651,0.60369634,105420.0,105400.0,0.40594108]
[1737297317849,0.45849717,105410.0,105400.0,0.40594108]
[1737297318361,0.3608,105410.0,105400.0,0.40594108]
[1737297318559,0.09769717,105420.0,105400.0,0.40594108]
[1737297318760,0.09769717,105420.0,105400.0,0.76674108]
[1737297318958,0.45849717,105430.0,105400.0,0.4713149]
[1737297319262,0.09769717,105420.0,105400.0,0.01281773]
[1737297319564,0.3608,105420.0,105400.0,0.01281773]
[1737297319757,0.45849717,105420.0,105400.0,0.01281773]
[1737297320056,0.3608,105420.0,105400.0,1.2179149]
[1737297320261,1.55734861,105440.0,105400.0,1.2179149]
[1737297320460,0.45849717,105430.0,105410.0,0.3847]
[1737297321162,0.45849717,105430.0,105410.0,0.7455]
[1737297322359,0.45849717,105430.0,105410.0,0.3847]
[1737297322556,0.09769717,105420.0,105410.0,0.3847]
[1737297322759,0.45849717,105420.0,105400.0,0.54372603]
[1737297322958,0.09769717,105410.0,105400.0,0.54372603]
[1737297323263,0.14520017,105420.0,105400.0,0.54372603]
[1737297323460,0.45849717,105420.0,105400.0,0.54372603]
[1737297323655,0.3608,105430.0,105410.0,0.45849717]
[1737297323855,0.3608,105430.0,105410.0,0.3608]
[1737297324165,0.45849717,105430.0,105410.0,0.3608]
[1737297324857,0.45943462,105440.0,105410.0,0.45849717]
[1737297325059,0.09807461,105440.0,105420.0,0.7181]
[1737297325459,0.047503,105420.0,105400.0,0.76784108]
[1737297325667,0.09769717,105410.0,105400.0,0.76784108]
[1737297325854,0.09769717,105410.0,105400.0,1.12864108]
[1737297326162,0.09769717,105410.0,105400.0,0.65639824]
[1737297326564,0.09769717,105410.0,105400.0,1.01719824]
[1737297326956,0.09769717,105420.0,105400.0,1.01719824]
[1737297327462,0.09769717,105420.0,105400.0,0.96096214]
[1737297327865,0.45849717,105430.0,105400.0,0.96096214]
[1737297328266,0.45849717,105430.0,105410.0,0.3868]
[1737297328462,0.09769717,105430.0,105410.0,0.7425]
[1737297328662,0.3608,105430.0,105420.0,0.16919575]
[1737297328862,0.45849717,105430.0,105420.0,0.16919575]
[1737297329057,0.45849717,105430.0,105420.0,0.19290575]
[1737297329664,0.09769717,105430.0,105420.0,0.19290575]
[1737297329864,0.09769717,105430.0,105420.0,0.60995441]
[1737297330961,0.09769717,105430.0,105420.0,0.24915441]
[1737297331155,0.60369234,105430.0,105420.0,0.24915441]
[1737297331967,0.50599517,105430.0,105420.0,0.24915441]
[1737297332163,0.50599517,105430.0,105420.0,0.02371]
[1737297332164,0.09769717,105430.0,105420.0,0.02371]
[1737297332371,0.31237775,105440.0,105420.0,0.52970917]
[1737297332565,0.31237775,105440.0,105430.0,0.3608]
[1737297332765,0.31237775,105440.0,105430.0,1.431]
[1737297333365,0.00037744,105440.0,105430.0,1.97914652]
[1737297334570,0.00037744,105440.0,105430.0,2.31867563]
[1737297334766,0.09807461,105440.0,105430.0,1.95787563]
[1737297335171,0.00037744,105440.0,105430.0,1.95787563]
[1737297335363,0.00037744,105440.0,105430.0,2.42811141]
[1737297335665,1.18152307,105470.0,105430.0,2.31431763]
[1737297335873,0.96602024,105470.0,105450.0,0.3608]
[1737297336074,0.86832307,105470.0,105450.0,0.45849717]
[1737297336369,0.14212307,105470.0,105460.0,0.45849717]
[1737297336571,0.14212307,105470.0,105450.0,0.81999717]
[1737297336776,0.14212307,105470.0,105460.0,0.3608]
[1737297336965,0.49882307,105480.0,105460.0,0.3608]
[1737297337168,0.95732024,105480.0,105460.0,0.3608]
[1737297337565,0.60062024,105480.0,105460.0,0.3608]
[1737297338575,0.45849717,105480.0,105470.0,0.16925097]
[1737297339073,0.09769717,105480.0,105470.0,0.16925097]
[1737297339275,0.45849717,105480.0,105470.0,0.16925097]
[1737297339775,0.09769717,105480.0,105470.0,0.16925097]
[1737297340471,0.45849717,105480.0,105470.0,0.16925097]
[1737297340671,0.60366534,105480.0,105470.0,0.16925097]
[1737297340865,0.60366534,105480.0,105460.0,0.58653533]
[1737297340866,0.50596817,105480.0,105460.0,0.7557863]
[1737297341065,0.09769717,105470.0,105460.0,0.7557863]
[1737297341865,0.50596817,105480.0,105460.0,0.7557863]
[1737297342174,0.50596817,105480.0,105460.0,0.3608]
[1737297342175,0.09769717,105480.0,105460.0,0.3608]
[1737297342389,0.09769717,105470.0,105460.0,0.3608]
[1737297342570,0.50596817,105480.0,105450.0,1.50723148]
[1737297342875,0.50596817,105480.0,105450.0,1.60428865]
[1737297343371,0.50596817,105480.0,105450.0,1.50659148]
[1737297344879,0.09769717,105470.0,105450.0,1.50659148]
[1737297345776,0.50596817,105480.0,105450.0,1.50659148]
[1737297346075,0.50596817,105480.0,105450.0,1.60428865]
[1737297346268,0.50596817,105480.0,105450.0,1.50659148]
[1737297346465,0.09769717,105470.0,105450.0,1.50659148]
[1737297346876,0.05765992,105470.0,105450.0,1.50659148]
[1737297347072,0.408271,105480.0,105450.0,1.5642514]
[1737297347276,0.46593092,105480.0,105450.0,1.5642514]
[1737297347471,0.46593092,105480.0,105460.0,0.3608]
[1737297348379,0.46593092,105480.0,105450.0,1.5649314]
[1737297348776,0.46593092,105480.0,105460.0,0.3608]
[1737297349176,0.82772978,105490.0,105470.0,0.3608]
[1737297349381,0.00048,105490.0,105480.0,0.05765992]
[1737297349572,0.20512192,105500.0,105480.0,1.16195992]
[1737297349884,0.20512192,105500.0,105480.0,0.7435]
[1737297349885,0.05765992,105490.0,105480.0,0.7435]
[1737297350382,0.05765992,105490.0,105470.0,0.6664]
[1737297350572,0.05765992,105480.0,105470.0,0.6664]
[1737297350875,0.05765992,105480.0,105470.0,0.67791298]
[1737297351279,0.05765992,105480.0,105470.0,0.37231298]
[1737297352073,0.41845992,105490.0,105470.0,0.4299729]
[1737297352272,0.05765992,105490.0,105480.0,0.3608]
[1737297352567,0.15765992,105500.0,105480.0,0.3608]
[1737297352884,0.15765992,105500.0,105470.0,0.4299729]
[1737297353075,0.15765992,105500.0,105480.0,0.3766]
[1737297353480,0.15765992,105500.0,105480.0,0.7374]
[1737297354183,0.05765992,105490.0,105480.0,0.7374]
[1737297354374,0.05765992,105490.0,105480.0,0.3766]
[1737297354772,0.1,105500.0,105480.0,0.7374]
[1737297354978,0.1,105500.0,105490.0,0.3608]
[1737297355172,0.1,105500.0,105490.0,0.7139]
[1737297355386,0.15765992,105500.0,105490.0,1.0383]
[1737297356086,0.21531984,105500.0,105490.0,0.6775]
[1737297356688,0.15765992,105500.0,105490.0,0.6775]
[1737297357186,0.15765992,105500.0,105490.0,1.0383]
[1737297357488,0.15765992,105500.0,105490.0,0.6775]
[1737297358984,0.15765992,105500.0,105490.0,0.68890262]
[1737297359591,0.21531984,105500.0,105490.0,0.68890262]
[1737297360091,0.15765992,105500.0,105490.0,0.68890262]
[1737297360597,0.15765992,105500.0,105490.0,1.04970262]
[1737297360891,0.15765992,105500.0,105490.0,0.68890262]
[1737297361088,0.26278184,105500.0,105490.0,0.01140262]
[1737297361291,0.26278184,105500.0,105480.0,0.3949863]
[1737297361292,0.047466,105490.0,105480.0,0.3949863]
[1737297361589,0.047471,105480.0,105470.0,0.28168051]
[1737297361793,0.52359084,105480.0,105470.0,0.28168051]
[1737297362782,0.16279084,105480.0,105470.0,0.28168051]
[1737297362982,0.16279084,105480.0,105460.0,0.3608]
[1737297363292,0.05765992,105470.0,105450.0,1.67442051]
[1737297363487,0.05765992,105470.0,105450.0,1.68493336]
[1737297363888,0.05765992,105460.0,105450.0,1.68493336]
[1737297364386,0.46593092,105480.0,105450.0,1.68493336]
[1737297364387,0.05765992,105470.0,105450.0,1.68493336]
[1737297365689,0.8924044,105490.0,105460.0,0.41845992]
[1737297365895,0.1724044,105490.0,105480.0,0.3608]
[1737297366193,0.2198714,105490.0,105470.0,0.3852]
[1737297366406,0.11474448,105490.0,105470.0,0.3852]
[1737297366587,0.11474448,105490.0,105470.0,0.746]
[1737297366588,0.1724044,105490.0,105470.0,0.746]
[1737297367198,0.1724044,105490.0,105480.0,0.3608]
[1737297367793,0.1724044,105490.0,105470.0,0.746]
[1737297367988,0.1724044,105490.0,105480.0,0.6869]
[1737297368589,0.11474448,105490.0,105480.0,0.6869]
[1737297369094,0.00142249,105490.0,105480.0,0.6869]
[1737297369293,0.05908241,105490.0,105480.0,0.6869]
[1737297369798,0.57092199,105500.0,105480.0,0.37210903]
[1737297370002,0.57092199,105500.0,105490.0,0.3608]
[1737297370297,0.27098191,105500.0,105490.0,0.3608]
[1737297370491,0.27098191,105500.0,105490.0,0.3833]
[1737297371000,0.32864183,105500.0,105490.0,0.3833]
[1737297371392,0.21531984,105500.0,105490.0,0.3833]
[1737297371593,0.1,105500.0,105490.0,0.3833]
[1737297371787,0.1,105500.0,105490.0,0.80175992]
[1737297372001,0.1,105500.0,105490.0,0.7441]
[1737297372201,0.15765992,105500.0,105490.0,0.3833]
[1737297372589,0.1,105500.0,105490.0,0.44095992]
[1737297372795,0.1,105500.0,105490.0,0.80175992]
[1737297374003,0.11332199,105510.0,105490.0,0.85941984]
[1737297374199,0.11332199,105520.0,105500.0,1.18471984]
[1737297374400,0.11332199,105520.0,105510.0,0.77755992]
[1737297374902,0.14212307,105530.0,105510.0,0.77755992]
[1737297375102,0.14212307,105530.0,105520.0,0.41845992]
[1737297375803,0.05765992,105540.0,105520.0,0.41845992]
[1737297376005,0.50292307,105550.0,105530.0,0.41845992]
[1737297376202,0.56058299,105550.0,105530.0,0.77595992]
[1737297376401,0.56058299,105550.0,105530.0,0.7183]
[1737297376703,0.16987724,105560.0,105540.0,0.52356384]
[1737297376900,0.16957497,105580.0,105550.0,0.52355884]
[1737297377103,0.16957497,105580.0,105570.0,0.77925992]
[1737297377303,0.16957497,105580.0,105570.0,0.41845992]
[1737297377504,0.16957497,105580.0,105570.0,0.47611984]
[1737297378210,0.1,105600.0,105570.0,0.77611984]
[1737297378412,0.1,105600.0,105590.0,0.41845992]
[1737297378708,0.46586392,105630.0,105590.0,0.77925992]
[1737297378901,0.50521413,105630.0,105600.0,0.45781013]
[1737297379103,0.3608,105630.0,105600.0,0.45781013]
[1737297379302,0.3608,105630.0,105610.0,0.45781013]
[1737297379501,0.3608,105640.0,105620.0,0.09701013]
[1737297379798,0.00052001,105660.0,105630.0,0.45781013]
[1737297380001,0.09843114,105670.0,105650.0,0.3608]
[1737297380202,0.00142101,105670.0,105650.0,0.45781013]
[1737297380611,0.047395,105650.0,105630.0,0.3608]
[1737297380804,0.09701013,105640.0,105620.0,0.3608]
[1737297382008,0.14440913,105640.0,105620.0,0.3608]
[1737297382405,0.09701013,105630.0,105620.0,0.3608]
[1737297382709,0.14440913,105640.0,105620.0,0.3608]
[1737297382908,0.50520913,105640.0,105620.0,0.3608]
[1737297383113,0.50520913,105640.0,105610.0,1.09264722]
[1737297383114,0.50521413,105630.0,105610.0,1.09264722]
[1737297383316,0.408204,105630.0,105610.0,1.09264722]
[1737297383610,0.50521813,105620.0,105600.0,0.3608]
[1737297383812,0.09701013,105610.0,105590.0,0.37208598]
[1737297384116,0.14442713,105600.0,105590.0,0.36091592]
[1737297384311,0.14442713,105600.0,105590.0,0.00011592]
[1737297384817,0.09701013,105600.0,105590.0,0.00011592]
[1737297385207,0.50522213,105610.0,105590.0,0.00011592]
[1737297386615,0.09701013,105600.0,105590.0,0.00011592]
[1737297386815,0.50522213,105610.0,105590.0,0.00011592]
[1737297387012,0.09701013,105600.0,105590.0,0.00011592]
[1737297387203,0.60223726,105600.0,105590.0,0.00011592]
[1737297387513,0.047421,105590.0,105580.0,0.00142069]
[1737297387717,0.50523113,105590.0,105580.0,0.00142069]
[1737297388508,0.50532907,105590.0,105560.0,0.7333]
[1737297388705,0.14444113,105570.0,105550.0,0.37179002]
[1737297388911,0.09701013,105570.0,105550.0,0.01099002]
[1737297389118,0.09701013,105560.0,105540.0,1.1056]
[1737297389312,0.00010775,105550.0,105540.0,1.1056]
[1737297389809,0.00010775,105550.0,105540.0,0.7448]
[1737297390010,0.00010775,105550.0,105540.0,0.75610074]
[1737297390211,0.00010775,105550.0,105540.0,1.11690074]
[1737297390409,0.00010775,105550.0,105540.0,1.310921]
[1737297390717,0.00010775,105550.0,105500.0,0.72120962]
[1737297390718,0.3608,105510.0,105500.0,0.72120962]
[1737297391017,0.3608,105510.0,105500.0,0.74489962]
[1737297391018,0.36088743,105510.0,105500.0,0.74489962]
[1737297391411,0.36088743,105510.0,105500.0,0.40537051]
[1737297391615,0.45789756,105510.0,105500.0,0.40537051]
[1737297391817,0.36088743,105510.0,105500.0,0.50238064]
[1737297392023,0.36088743,105510.0,105500.0,0.40537051]
[1737297392522,0.45789756,105510.0,105500.0,0.41635496]
[1737297392913,0.45789756,105510.0,105500.0,0.13467445]
[1737297392914,0.36088743,105510.0,105500.0,0.13467445]
[1737297393908,0.3608,105520.0,105500.0,0.23168458]
[1737297394315,0.45781013,105520.0,105500.0,0.13467445]
[1737297394623,0.3608,105520.0,105500.0,0.13467445]
[1737297394820,0.60227726,105510.0,105470.0,0.2831028]
[1737297395017,0.96309126,105480.0,105470.0,0.04206325]
[1737297395318,0.91562026,105480.0,105450.0,0.33952911]
[1737297395514,0.60230026,105460.0,105450.0,0.33952911]
[1737297395715,0.55482026,105460.0,105450.0,0.33952911]
[1737297396023,0.81861013,105460.0,105450.0,0.33952911]
[1737297396323,0.81861013,105460.0,105430.0,0.01119438]
[1737297396522,0.09701013,105440.0,105420.0,1.11764886]
[1737297396922,0.11434159,105440.0,105420.0,1.11764886]
[1737297397217,0.11434159,105440.0,105420.0,1.47524886]
[1737297397421,0.11434159,105440.0,105420.0,1.42775186]
[1737297397619,0.47514159,105450.0,105420.0,1.43863402]
[1737297397927,0.47514159,105450.0,105420.0,1.14660191]
[1737297398820,0.47514159,105450.0,105420.0,1.09910491]
[1737297399333,0.47514159,105450.0,105420.0,1.14849908]
[1737297399516,0.3608,105450.0,105420.0,1.14849908]
[1737297400418,0.47514159,105450.0,105420.0,1.14849908]
[1737297400618,0.47514159,105450.0,105420.0,1.14660191]
[1737297401217,0.11434159,105450.0,105430.0,0.3608]
[1737297402119,0.47514159,105460.0,105430.0,0.3608]
[1737297402310,0.47514159,105450.0,105430.0,0.3608]
[1737297402514,0.47514159,105450.0,105420.0,1.14660191]
[1737297404228,0.47514159,105450.0,105430.0,0.3608]
[1737297404829,0.11434159,105450.0,105430.0,0.3608]
[1737297405029,0.11434159,105450.0,105430.0,0.408293]
[1737297405927,0.11434159,105450.0,105430.0,0.3608]
[1737297406125,0.47514159,105450.0,105430.0,0.3608]
[1737297407122,0.47514159,105450.0,105430.0,0.408293]
[1737297407828,0.47514159,105450.0,105430.0,0.3608]
[1737297409432,0.47514159,105450.0,105440.0,0.3608]
[1737297409433,0.11434159,105450.0,105440.0,0.3608]
[1737297409733,0.11434159,105450.0,105430.0,0.408293]
[1737297411633,0.47514159,105460.0,105430.0,0.408293]
[1737297412337,0.11434159,105450.0,105430.0,0.408293]
[1737297412532,0.11434159,105450.0,105400.0,0.1]
[1737297412533,0.047502,105410.0,105400.0,0.1]
[1737297412738,0.88344359,105410.0,105380.0,0.35072841]
[1737297412937,0.83594159,105390.0,105380.0,0.38775633]
[1737297413229,0.7216,105390.0,105380.0,0.38775633]
[1737297413637,0.83594159,105390.0,105380.0,0.38775633]
[1737297413935,0.83594159,105390.0,105380.0,0.37655703]
[1737297414730,0.83594159,105390.0,105360.0,0.047525]
[1737297414933,0.3608,105370.0,105360.0,0.047525]
[1737297415730,0.3608,105380.0,105360.0,0.047525]
[1737297416143,0.52266359,105370.0,105330.0,1.48224149]
[1737297416331,0.47514159,105340.0,105330.0,1.43470349]
[1737297416531,0.11434159,105340.0,105330.0,1.43470349]
[1737297416742,0.3608,105340.0,105330.0,1.43470349]
[1737297416935,0.45833023,105340.0,105330.0,1.44578726]
[1737297417130,0.45833023,105340.0,105330.0,1.49332526]
[1737297417332,0.3608,105340.0,105330.0,1.49332526]
[1737297417634,0.09753023,105350.0,105330.0,1.85412526]
[1737297417834,0.45833023,105370.0,105340.0,0.047532]
[1737297418039,0.09753023,105360.0,105330.0,1.90411749]
[1737297418238,0.45833023,105360.0,105340.0,0.047531]
[1737297419835,0.09753023,105350.0,105340.0,0.047531]
[1737297420034,0.45833023,105360.0,105340.0,0.047531]
[1737297420237,0.09753023,105360.0,105340.0,0.047531]
[1737297420437,0.3608,105360.0,105340.0,0.047531]
[1737297420643,0.45833023,105360.0,105340.0,0.047531]
[1737297420844,0.3608,105360.0,105340.0,0.047531]
[1737297421344,0.45833023,105360.0,105340.0,0.047531]
[1737297421643,0.3608,105360.0,105340.0,0.047531]
[1737297422143,0.3608,105360.0,105350.0,0.22381406]
[1737297422843,0.3608,105380.0,105350.0,0.72967229]
[1737297423042,0.45833023,105370.0,105350.0,0.22381406]
[1737297423235,0.3608,105360.0,105350.0,0.22381406]
[1737297423645,0.45833023,105360.0,105350.0,0.22381406]
[1737297424336,0.55586046,105360.0,105350.0,0.22381406]
[1737297424538,0.45833023,105360.0,105350.0,0.22381406]
[1737297426042,0.81583023,105360.0,105350.0,0.22381406]
[1737297426243,0.81583023,105360.0,105340.0,0.22381406]
[1737297426548,0.45833023,105350.0,105340.0,0.22381406]
[1737297427842,0.50585923,105350.0,105330.0,0.22523824]
[1737297428151,0.45833023,105340.0,105330.0,0.22523824]
[1737297428842,0.45833023,105340.0,105330.0,0.00142418]
[1737297429041,0.45833023,105340.0,105320.0,0.23470059]
[1737297429241,0.3608,105330.0,105320.0,0.28224359]
[1737297429442,0.3608,105340.0,105320.0,0.37977382]
[1737297430435,0.3608,105330.0,105320.0,0.37977382]
[1737297430641,0.3608,105340.0,105320.0,0.37977382]
[1737297431143,0.3608,105340.0,105330.0,0.09753023]
[1737297431346,0.3608,105340.0,105320.0,0.37977382]
[1737297431947,0.3608,105350.0,105320.0,0.74057382]
[1737297432143,0.45833023,105350.0,105320.0,0.37977382]
[1737297432341,0.3608,105340.0,105320.0,0.23470059]
[1737297432541,0.3608,105330.0,105320.0,0.23470059]
[1737297432749,0.45833023,105350.0,105320.0,0.59550059]
[1737297432949,0.09753023,105340.0,105320.0,0.59550059]
[1737297433141,0.45833023,105350.0,105320.0,0.59550059]
[1737297433345,0.45833023,105350.0,105320.0,0.69303082]
[1737297433649,0.09753023,105350.0,105320.0,1.06253082]
[1737297434542,0.45833023,105350.0,105320.0,1.06253082]
[1737297434744,0.3608,105340.0,105320.0,0.96500059]
[1737297434943,0.3608,105340.0,105320.0,0.83871676]
[1737297435847,0.45833023,105340.0,105320.0,0.74118653]
[1737297436052,0.45833023,105340.0,105320.0,0.37168653]
[1737297436555,0.3608,105340.0,105320.0,0.37168653]
[1737297436753,0.45833023,105340.0,105320.0,0.01088653]
[1737297436948,0.3608,105330.0,105310.0,0.93691406]
[1737297437150,0.45833023,105340.0,105310.0,0.93691406]
[1737297437350,0.3608,105340.0,105320.0,0.09753023]
[1737297437559,0.3608,105350.0,105330.0,0.09753023]
[1737297438553,0.45833023,105350.0,105320.0,0.48206023]
[1737297438756,0.45833023,105350.0,105320.0,0.70587429]
[1737297439146,0.71972432,105360.0,105340.0,0.09753023]
[1737297439344,0.24716814,105400.0,105350.0,0.45833023]
[1737297439345,0.77163023,105390.0,105350.0,0.45833023]
[1737297439547,0.77163023,105390.0,105350.0,0.87445723]
[1737297439846,0.77163023,105390.0,105370.0,0.3608]
[1737297440042,0.77163023,105390.0,105360.0,0.45833023]
[1737297440254,0.3608,105390.0,105360.0,0.45833023]
[1737297440450,0.45833023,105390.0,105360.0,0.84333023]
[1737297440854,0.09753023,105390.0,105370.0,0.3608]
[1737297441056,0.09753023,105390.0,105360.0,0.84333023]
[1737297441350,0.3608,105390.0,105370.0,0.3608]
[1737297441652,0.3608,105390.0,105370.0,0.45833023]
[1737297442954,0.3608,105390.0,105370.0,0.58461406]
[1737297443454,0.09753023,105380.0,105370.0,0.58461406]
[1737297443655,0.45833023,105390.0,105370.0,0.22381406]
[1737297444155,0.09753023,105380.0,105370.0,0.22381406]
[1737297444352,0.45833023,105390.0,105380.0,0.22381406]
[1737297444751,0.60337146,105390.0,105380.0,0.22381406]
[1737297444956,0.97237146,105390.0,105380.0,0.22381406]
[1737297445850,0.97237146,105390.0,105370.0,0.22381406]
[1737297446049,0.45833023,105380.0,105370.0,0.22381406]
[1737297448360,0.3608,105390.0,105370.0,0.36886329]
[1737297448653,0.3608,105390.0,105370.0,0.63213306]
[1737297448958,0.3608,105390.0,105380.0,0.047516]
[1737297449261,0.3608,105390.0,105380.0,0.431316]
[1737297449954,0.47351185,105410.0,105380.0,0.88964623]
[1737297450152,0.11271185,105410.0,105390.0,0.50584123]
[1737297450554,0.11271185,105410.0,105400.0,0.3608]
[1737297450755,0.11271185,105410.0,105390.0,0.50584123]
[1737297450952,0.11271185,105410.0,105400.0,0.50583723]
[1737297451156,0.47351185,105430.0,105400.0,0.50583723]
[1737297451466,0.11271185,105430.0,105420.0,0.09753023]